Workbook

Sheet Mode d'emploi

Sheet 1. Vos objectifs
D1: Entrez ici vos prévisions ou objectifs ⬇️
A3: Les prestations fonction ressource | C3: Unité d'œuvre | D3: Objectif quantifié
A4: Information Documentation | C4: Demande d'information | D4: 110
A5: Sensibilisation | C5: Séance | D5: 17
A6: Formation | B6: Cas 1 ESMS NON OF | C6: La demande de formation sous-traitée | D6: 3
B7: Cas 2 ESMS OF | C7: Séance | D7: 1
A8: Appui aux pratiques | C8: Séance | D8: 30
A9: Appui-conseil | C9: Séance | D9: 18
A10: Observation-évaluation partagée | B10: Cas 1 Sous forme d'accueil temporaire | C10: Journée d'accueil temporaire | D10: 10
B11: Cas 2 Au sein de l'ESMS requérant | C11: Session

Sheet 2.Coût salariaux
A1: Coûts salariaux par profession en euros
A2: Convention collective 1966
A3: Fonction | B3: Ancienneté | C3: Indice du poste | D3: Indemnité de sujétion spéciale | E3: Valeur du point | F3: Salaire brut | G3: Coût salarial mensuel | H3: Coût salarial annuel | I3: Coût salarial à la minute | J3: Coût salarial à l'heure | K3: Durée annuelle du travail
A4: Educateur technique spécialisé | B4: Après 20 ans | C4: 679 | D4: 0.0848 | E4: 3.82 | F4: =C4*(1+D4)*E4 -> 2813.732544 | G4: =F4*1.4 -> 3939.225562 | H4: =G4*12 -> 47270.70674 | I4: =Tableau1[[#This Row],[Coût salarial mensuel]]/151.67/60 -> 0.4328724162 | J4: =Tableau1[[#This Row],[Coût salarial à la minute]]*60 -> 25.97234497 | K4: 1607
A5: Infirmière | B5: Après 20 ans | C5: 679 | D5: 0.0848 | E5: 3.82 | F5: =C5*(1+D5)*E5 -> 2813.732544 | G5: 3939.225562 | H5: =G5*12 -> 47270.70674 | I5: =Tableau1[[#This Row],[Coût salarial mensuel]]/151.67/60 -> 0.4328724162 | J5: =Tableau1[[#This Row],[Coût salarial à la minute]]*60 -> 25.97234497 | K5: 1607
A6: Médecin spécialiste qualifié | B6: Après 21 ans | C6: 2024 | D6: 0 | E6: 3.82 | F6: =C6*(1+D6)*E6 -> 7731.68 | G6: 10824.352 | H6: 129892.224 | I6: =Tableau1[[#This Row],[Coût salarial mensuel]]/151.67/60 -> 1.189463089 | J6: =Tableau1[[#This Row],[Coût salarial à la minute]]*60 -> 71.36778532 | K6: 1607
A7: Psychologue (cadre niveau 1, classe 1) | B7: Après 21 ans | C7: 1052.7 | D7: 0 | E7: 3.82 | F7: 4021.314 | G7: 5629.8396 | H7: 67558.0752 | I7: =Tableau1[[#This Row],[Coût salarial mensuel]]/151.67/60 -> 0.6186500956 | J7: =Tableau1[[#This Row],[Coût salarial à la minute]]*60 -> 37.11900574 | K7: 1607
A8: Chef de service (référent FR) (cadre 2, niveau 2) | B8: Après 21 ans | C8: 931.7 | D8: 0 | E8: 3.82 | F8: 3559.094 | G8: 4982.7316 | H8: 59792.7792 | I8: =Tableau1[[#This Row],[Coût salarial mensuel]]/151.67/60 -> 0.5475408892 | J8: =Tableau1[[#This Row],[Coût salarial à la minute]]*60 -> 32.85245335 | K8: 1607
A9: Agent administratif principal | B9: Après 20 ans | C9: 498 | D9: 0.0848 | E9: 3.82 | F9: 2063.680128 | G9: 2889.152179 | H9: 34669.82615 | I9: =Tableau1[[#This Row],[Coût salarial mensuel]]/151.67/60 -> 0.3174822728 | J9: =Tableau1[[#This Row],[Coût salarial à la minute]]*60 -> 19.04893637 | K9: 1607

Sheet 3.Activités par prestation
A1: Activités composant chacune des prestations de la fonction ressource
A2: Entrer 1 dans les cases correspondant aux activités incluses dans la prestation. Laisser vide si l'activité n'entre pas dans la prestation.
A3: Prestations de la fonction ressource / Activités | B3: Information Documentation | C3: Sensibilisation | D3: Formation | F3: Appui aux pratiques | G3: Appui-conseil | H3: Observation-évaluation partagée
D4: Cas 1 ESMS NON OF | E4: Cas 2 ESMS OF | H4: Cas 1 Sous forme d'accueil temporaire | I4: Cas 2 Au sein de l'ESMS requérant
A5: Réceptionner une demande par formulaire, mail ou téléphone | B5: 1 | C5: 1 | D5: 1 | E5: 1 | F5: 1 | G5: 1 | H5: 1 | I5: 1
A6: Enregistrer la demande : demandeur, objet de la sollicitation | B6: 1 | C6: 1 | D6: 1 | E6: 1 | F6: 1 | G6: 1 | H6: 1 | I6: 1
A7: Apporter une réponse en termes d'information (téléphone, mail) | B7: 1
A8: Adresser une documentation (par mail) | B8: 1
A9: Conduire un entretien téléphonique avec le requérant | C9: 1 | D9: 1 | E9: 1 | F9: 1 | G9: 1 | H9: 1 | I9: 1
A10: Recueillir sur un formulaire ad'hoc les éléments utiles et réaliser une première analyse | C10: 1 | D10: 1 | E10: 1 | F10: 1 | G10: 1 | H10: 1 | I10: 1
A11: Analyser/décrypter la demande simple en équipe | C11: 1
A12: Analyser/décrypter la demande complexe en équipe | E12: 1 | F12: 1 | G12: 1 | I12: 1
A13: Formuler une proposition par téléphone / mail auprès du requérant / Tracer la réponse | C13: 1 | E13: 1 | F13: 1 | G13: 1 | I13: 1
A14: Planifier l'intervention : professionnels intervenants et calendrier | C14: 1 | E14: 1 | F14: 1 | G14: 1
A15: Formaliser le programme d’intervention | C15: 1 | E15: 1 | F15: 1 | G15: 1
A16: Faire valider le programme d’intervention par le requérant | C16: 1 | E16: 1 | F16: 1 | G16: 1
A17: Rédiger une convention d’intervention | C17: 1 | E17: 1 | F17: 1 | G17: 1 | I17: 1
A18: Préparer l’accueil de la personne (emploi du temps, service…)
A19: Préparer l'intervention (logistique, supports, outils…) | E19: 1 | F19: 1 | G19: 1 | I19: 1
A20: Transmettre la demande à l’organisme de formation en capacité d’assurer / de porter la formation. | D20: 1
A21: Déterminer avec l'Organisme de formation porteur les modalités de partenariat (délégation, mise à disposition d'intervenants) | D21: 1
A22: S'assurer de la réalisation de l'action de formation par l'Organisme de formation sollicité | D22: 1
A23: Animer/Délivrer la prestation de sensibilisation | C23: 1
A24: Animer/Délivrer la prestation d'appui aux pratiques | F24: 1
A25: Animer/Délivrer la prestation d'appui-conseil | G25: 1
A26: Animer/délivrer la prestation de formation | E26: 1
A27: Animer/Délivrer la prestation d'observation | I27: 1
A28: Rédiger un bilan, une synthèse de l'évaluation pluridisciplinaire | I28: 1
A29: Formaliser des préconisations | G29: 1 | H29: 1 | I29: 1
A30: Évaluer la prestation "à chaud" | C30: 1 | G30: 1 | I30: 1
A31: Évaluer un suivi de l'intervention à 3 / 6 mois | D31: 1 | E31: 1 | F31: 1 | G31: 1 | H31: 1 | I31: 1
A32: Suivre l'activité RH et budgétaire de façon analytique | C32: 1 | D32: 1 | E32: 1 | F32: 1 | G32: 1 | H32: 1 | I32: 1

Sheet 4.Durées des activités
A1: Durée standard des activités par profession, en minutes, hors transport
B2: Entrer dans chaque case la durée estimée en minutes de réalisation de l'activité par le professionnel concerné.
A3: Activités | B3: Educateur | C3: Infirmière | D3: Médecin spécialisé | E3: Psychologue | F3: Référent FR | G3: Administratif | H3: Durée totale en minutes | I3: Commentaires
A4: Réceptionner une demande par formulaire, mail ou téléphone | G4: 5 | H4: =SUM(B4:G4) -> 5
A5: Enregistrer la demande : demandeur, objet de la sollicitation a nature de la sollicitation | G5: 5 | H5: =SUM(B5:G5) -> 5
A6: Apporter une réponse en termes d'information (téléphone, mail) | F6: 15 | H6: 15
A7: Adresser une documentation (par mail) | G7: 5 | H7: 5
A8: Conduire un entretien téléphonique avec le requérant | F8: 30 | H8: 30
A9: Recueillir sur un formulaire ad'hoc les éléments utiles et réaliser une première analyse | F9: 60 | H9: 60
A10: Analyser/décrypter la demande simple en équipe | B10: 10 | C10: 10 | F10: 30 | H10: 50 | I10: Temps de coordination du référent qui va aller questionner les IDE et éducateurs le cas échéant sur l'objet de la sensibilsation.
A11: Analyser/décrypter la demande complexe en équipe | B11: 45 | C11: 45 | D11: 45 | E11: 45 | F11: 90 | G11: 10 | H11: =SUM(B11:G11) -> 280 | I11: 1h30h du référent, en lien avec éducateur, IDE et médécin qui consacrent chacun 45 minutes dont une partie en réunion de concertation.
A12: Formuler une proposition par téléphone / mail auprès du requérant / Tracer la réponse | F12: 15 | G12: 5 | H12: 20
A13: Planifier l'intervention : professionnels intervenants et calendrier | F13: 15 | H13: 15
A14: Formaliser le programme d’intervention | F14: 45 | H14: 45
A15: Faire valider le programme d’intervention par le requérant | G15: 20 | H15: 20
A16: Rédiger une convention d’intervention | F16: 45 | G16: 30 | H16: 75
A17: Préparer l’accueil de la personne | F17: 60 | H17: 60
A18: Préparer l'intervention (logistique, supports, outils…) | B18: 60 | C18: 60 | F18: 20 | H18: 140
A19: Transmettre la demande à l’organisme de formation en capacité d’assurer / de porter la formation. | F19: 30 | G19: 15 | H19: 45
A20: Déterminer avec l'Organisme de formation porteur les modalités de partenariat (délégation, mise à disposition d'intervenants) | F20: 30 | H20: 30
A21: S'assurer de la réalisation de l'action de formation par l'Organisme de formation sollicité | G21: 30 | H21: 30
A22: Animer/Délivrer la prestation de sensibilisation | B22: 120 | C22: 120 | H22: 240 | I22: 2 h par séance, en binôme
A23: Animer/Délivrer la prestation d'appui aux pratiques | B23: 120 | C23: 120 | H23: 240 | I23: 1 séance de 2 heures, en binome, et 1 heure de préparation au total (comptabilisée dans l'activité Préparer l'intervention)
A24: Animer/Délivrer la prestation d'appui-conseil | B24: 120 | C24: 120 | H24: =SUM(B24:G24) -> 240 | I24: 1 séance de 2 heures, en binome, et 1 heure de préparation au tota (comptabilisée dans l'activité Préparer l'intervention)
A25: Animer/Délivrer la prestation de formation | B25: 420 | C25: 420 | H25: 840
A26: Animer/Délivrer la prestation d'observation | B26: 180 | C26: 180 | H26: =SUM(B26:G26) -> 360
A27: Rédiger un bilan, une synthèse de l'évaluation pluridisciplinaire | B27: 60 | C27: 60 | D27: 60 | E27: 60 | F27: 60 | G27: 30 | H27: 330
A28: Formaliser des préconisations | B28: 45 | C28: 45 | F28: 30 | H28: 120
A29: Évaluer la prestation "à chaud" | F29: 30 | H29: 30
A30: Évaluer un suivi de l'intervention à 3 / 6 mois | F30: 90 | H30: 90
A31: Suivre l'activité RH et budgétaire de façon analytique | G31: 60 | H31: 60

Sheet 5.Coût activité profession
A1: Coût standard des activités par profession en euros
A3: Activités | B3: Educateur | C3: Infirmière | D3: Médecin spécialisé | E3: Psychologue | F3: Référent FR | G3: Administratif | H3: Coût unitaire de la prestation
A4: Réceptionner une demande par formulaire, mail ou téléphone | B4: ='4.Durées des activités'!B4*'2.Coût salariaux'!$I$4 -> 0 | C4: ='4.Durées des activités'!C4*'2.Coût salariaux'!$I$5 -> 0 | D4: ='4.Durées des activités'!D4*'2.Coût salariaux'!$I$6 -> 0 | E4: ='4.Durées des activités'!E4*'2.Coût salariaux'!$I$7 -> 0 | F4: ='4.Durées des activités'!F4*'2.Coût salariaux'!$I$8 -> 0 | G4: ='4.Durées des activités'!G4*'2.Coût salariaux'!$I$9 -> 1.587411364 | H4: =SUM(B4:G4) -> 1.587411364
A5: Enregistrer la demande : demandeur, objet de la sollicitation a nature de la sollicitation | B5: ='4.Durées des activités'!B5*'2.Coût salariaux'!$I$4 -> 0 | C5: ='4.Durées des activités'!C5*'2.Coût salariaux'!$I$5 -> 0 | D5: ='4.Durées des activités'!D5*'2.Coût salariaux'!$I$6 -> 0 | E5: ='4.Durées des activités'!E5*'2.Coût salariaux'!$I$7 -> 0 | F5: ='4.Durées des activités'!F5*'2.Coût salariaux'!$I$8 -> 0 | G5: ='4.Durées des activités'!G5*'2.Coût salariaux'!$I$9 -> 1.587411364 | H5: =SUM(B5:G5) -> 1.587411364
A6: Apporter une réponse en termes d'information (téléphone, mail) | B6: ='4.Durées des activités'!B6*'2.Coût salariaux'!$I$4 -> 0 | C6: ='4.Durées des activités'!C6*'2.Coût salariaux'!$I$5 -> 0 | D6: ='4.Durées des activités'!D6*'2.Coût salariaux'!$I$6 -> 0 | E6: ='4.Durées des activités'!E6*'2.Coût salariaux'!$I$7 -> 0 | F6: ='4.Durées des activités'!F6*'2.Coût salariaux'!$I$8 -> 8.213113338 | G6: ='4.Durées des activités'!G6*'2.Coût salariaux'!$I$9 -> 0 | H6: 8.213113338
A7: Adresser une documentation (par mail) | B7: ='4.Durées des activités'!B7*'2.Coût salariaux'!$I$4 -> 0 | C7: ='4.Durées des activités'!C7*'2.Coût salariaux'!$I$5 -> 0 | D7: ='4.Durées des activités'!D7*'2.Coût salariaux'!$I$6 -> 0 | E7: ='4.Durées des activités'!E7*'2.Coût salariaux'!$I$7 -> 0 | F7: ='4.Durées des activités'!F7*'2.Coût salariaux'!$I$8 -> 0 | G7: ='4.Durées des activités'!G7*'2.Coût salariaux'!$I$9 -> 1.587411364 | H7: 1.587411364
A8: Conduire un entretien téléphonique avec le requérant | B8: ='4.Durées des activités'!B8*'2.Coût salariaux'!$I$4 -> 0 | C8: ='4.Durées des activités'!C8*'2.Coût salariaux'!$I$5 -> 0 | D8: ='4.Durées des activités'!D8*'2.Coût salariaux'!$I$6 -> 0 | E8: ='4.Durées des activités'!E8*'2.Coût salariaux'!$I$7 -> 0 | F8: ='4.Durées des activités'!F8*'2.Coût salariaux'!$I$8 -> 16.42622668 | G8: ='4.Durées des activités'!G8*'2.Coût salariaux'!$I$9 -> 0 | H8: 16.42622668
A9: Recueillir sur un formulaire ad'hoc les éléments utiles et réaliser une première analyse | B9: ='4.Durées des activités'!B9*'2.Coût salariaux'!$I$4 -> 0 | C9: ='4.Durées des activités'!C9*'2.Coût salariaux'!$I$5 -> 0 | D9: ='4.Durées des activités'!D9*'2.Coût salariaux'!$I$6 -> 0 | E9: ='4.Durées des activités'!E9*'2.Coût salariaux'!$I$7 -> 0 | F9: ='4.Durées des activités'!F9*'2.Coût salariaux'!$I$8 -> 32.85245335 | G9: ='4.Durées des activités'!G9*'2.Coût salariaux'!$I$9 -> 0 | H9: 32.85245335
A10: Analyser/décrypter la demande simple en équipe | B10: ='4.Durées des activités'!B10*'2.Coût salariaux'!$I$4 -> 4.328724162 | C10: ='4.Durées des activités'!C10*'2.Coût salariaux'!$I$5 -> 4.328724162 | D10: ='4.Durées des activités'!D10*'2.Coût salariaux'!$I$6 -> 0 | E10: ='4.Durées des activités'!E10*'2.Coût salariaux'!$I$7 -> 0 | F10: ='4.Durées des activités'!F10*'2.Coût salariaux'!$I$8 -> 16.42622668 | G10: ='4.Durées des activités'!G10*'2.Coût salariaux'!$I$9 -> 0 | H10: 25.083675
A11: Analyser/décrypter la demande complexe en équipe | B11: ='4.Durées des activités'!B11*'2.Coût salariaux'!$I$4 -> 19.47925873 | C11: ='4.Durées des activités'!C11*'2.Coût salariaux'!$I$5 -> 19.47925873 | D11: ='4.Durées des activités'!D11*'2.Coût salariaux'!$I$6 -> 53.52583899 | E11: ='4.Durées des activités'!E11*'2.Coût salariaux'!$I$7 -> 27.8392543 | F11: ='4.Durées des activités'!F11*'2.Coût salariaux'!$I$8 -> 49.27868003 | G11: ='4.Durées des activités'!G11*'2.Coût salariaux'!$I$9 -> 3.174822728 | H11: 172.7771135
A12: Formuler une proposition par téléphone / mail auprès du requérant / Tracer la réponse | B12: ='4.Durées des activités'!B12*'2.Coût salariaux'!$I$4 -> 0 | C12: ='4.Durées des activités'!C12*'2.Coût salariaux'!$I$5 -> 0 | D12: ='4.Durées des activités'!D12*'2.Coût salariaux'!$I$6 -> 0 | E12: ='4.Durées des activités'!E12*'2.Coût salariaux'!$I$7 -> 0 | F12: ='4.Durées des activités'!F12*'2.Coût salariaux'!$I$8 -> 8.213113338 | G12: ='4.Durées des activités'!G12*'2.Coût salariaux'!$I$9 -> 1.587411364 | H12: 9.800524702
A13: Planifier l'intervention : professionnels intervenants et calendrier | B13: ='4.Durées des activités'!B13*'2.Coût salariaux'!$I$4 -> 0 | C13: ='4.Durées des activités'!C13*'2.Coût salariaux'!$I$5 -> 0 | D13: ='4.Durées des activités'!D13*'2.Coût salariaux'!$I$6 -> 0 | E13: ='4.Durées des activités'!E13*'2.Coût salariaux'!$I$7 -> 0 | F13: ='4.Durées des activités'!F13*'2.Coût salariaux'!$I$8 -> 8.213113338 | G13: ='4.Durées des activités'!G13*'2.Coût salariaux'!$I$9 -> 0 | H13: 8.213113338
A14: Formaliser le programme d’intervention | B14: ='4.Durées des activités'!B14*'2.Coût salariaux'!$I$4 -> 0 | C14: ='4.Durées des activités'!C14*'2.Coût salariaux'!$I$5 -> 0 | D14: ='4.Durées des activités'!D14*'2.Coût salariaux'!$I$6 -> 0 | E14: ='4.Durées des activités'!E14*'2.Coût salariaux'!$I$7 -> 0 | F14: ='4.Durées des activités'!F14*'2.Coût salariaux'!$I$8 -> 24.63934001 | G14: ='4.Durées des activités'!G14*'2.Coût salariaux'!$I$9 -> 0 | H14: 24.63934001
A15: Faire valider le programme d’intervention par le requérant | B15: ='4.Durées des activités'!B15*'2.Coût salariaux'!$I$4 -> 0 | C15: ='4.Durées des activités'!C15*'2.Coût salariaux'!$I$5 -> 0 | D15: ='4.Durées des activités'!D15*'2.Coût salariaux'!$I$6 -> 0 | E15: ='4.Durées des activités'!E15*'2.Coût salariaux'!$I$7 -> 0 | F15: ='4.Durées des activités'!F15*'2.Coût salariaux'!$I$8 -> 0 | G15: ='4.Durées des activités'!G15*'2.Coût salariaux'!$I$9 -> 6.349645457 | H15: 6.349645457
A16: Rédiger une convention d’intervention | B16: ='4.Durées des activités'!B16*'2.Coût salariaux'!$I$4 -> 0 | C16: ='4.Durées des activités'!C16*'2.Coût salariaux'!$I$5 -> 0 | D16: ='4.Durées des activités'!D16*'2.Coût salariaux'!$I$6 -> 0 | E16: ='4.Durées des activités'!E16*'2.Coût salariaux'!$I$7 -> 0 | F16: ='4.Durées des activités'!F16*'2.Coût salariaux'!$I$8 -> 24.63934001 | G16: ='4.Durées des activités'!G16*'2.Coût salariaux'!$I$9 -> 9.524468185 | H16: 34.1638082
A17: Préparer l’accueil de la personne | B17: ='4.Durées des activités'!B17*'2.Coût salariaux'!$I$4 -> 0 | C17: ='4.Durées des activités'!C17*'2.Coût salariaux'!$I$5 -> 0 | D17: ='4.Durées des activités'!D17*'2.Coût salariaux'!$I$6 -> 0 | E17: ='4.Durées des activités'!E17*'2.Coût salariaux'!$I$7 -> 0 | F17: ='4.Durées des activités'!F17*'2.Coût salariaux'!$I$8 -> 32.85245335 | G17: ='4.Durées des activités'!G17*'2.Coût salariaux'!$I$9 -> 0 | H17: 32.85245335
A18: Préparer l'intervention (logistique, supports, outils…) | B18: ='4.Durées des activités'!B18*'2.Coût salariaux'!$I$4 -> 25.97234497 | C18: ='4.Durées des activités'!C18*'2.Coût salariaux'!$I$5 -> 25.97234497 | D18: ='4.Durées des activités'!D18*'2.Coût salariaux'!$I$6 -> 0 | E18: ='4.Durées des activités'!E18*'2.Coût salariaux'!$I$7 -> 0 | F18: ='4.Durées des activités'!F18*'2.Coût salariaux'!$I$8 -> 10.95081778 | G18: ='4.Durées des activités'!G18*'2.Coût salariaux'!$I$9 -> 0 | H18: 62.89550772
A19: Transmettre la demande à l’organisme de formation en capacité d’assurer / de porter la formation. | B19: ='4.Durées des activités'!B19*'2.Coût salariaux'!$I$4 -> 0 | C19: ='4.Durées des activités'!C19*'2.Coût salariaux'!$I$5 -> 0 | D19: ='4.Durées des activités'!D19*'2.Coût salariaux'!$I$6 -> 0 | E19: ='4.Durées des activités'!E19*'2.Coût salariaux'!$I$7 -> 0 | F19: ='4.Durées des activités'!F19*'2.Coût salariaux'!$I$8 -> 16.42622668 | G19: ='4.Durées des activités'!G19*'2.Coût salariaux'!$I$9 -> 4.762234092 | H19: 21.18846077
A20: Déterminer avec l'Organisme de formation porteur les modalités de partenariat (délégation, mise à disposition d'intervenants) | B20: ='4.Durées des activités'!B20*'2.Coût salariaux'!$I$4 -> 0 | C20: ='4.Durées des activités'!C20*'2.Coût salariaux'!$I$5 -> 0 | D20: ='4.Durées des activités'!D20*'2.Coût salariaux'!$I$6 -> 0 | E20: ='4.Durées des activités'!E20*'2.Coût salariaux'!$I$7 -> 0 | F20: ='4.Durées des activités'!F20*'2.Coût salariaux'!$I$8 -> 16.42622668 | G20: ='4.Durées des activités'!G20*'2.Coût salariaux'!$I$9 -> 0 | H20: 16.42622668
A21: S'assurer de la réalisation de l'action de formation par l'Organisme de formation sollicité | B21: ='4.Durées des activités'!B21*'2.Coût salariaux'!$I$4 -> 0 | C21: ='4.Durées des activités'!C21*'2.Coût salariaux'!$I$5 -> 0 | D21: ='4.Durées des activités'!D21*'2.Coût salariaux'!$I$6 -> 0 | E21: ='4.Durées des activités'!E21*'2.Coût salariaux'!$I$7 -> 0 | F21: ='4.Durées des activités'!F21*'2.Coût salariaux'!$I$8 -> 0 | G21: ='4.Durées des activités'!G21*'2.Coût salariaux'!$I$9 -> 9.524468185 | H21: 9.524468185
A22: Animer/Délivrer la prestation de sensibilisation | B22: ='4.Durées des activités'!B22*'2.Coût salariaux'!$I$4 -> 51.94468994 | C22: ='4.Durées des activités'!C22*'2.Coût salariaux'!$I$5 -> 51.94468994 | D22: ='4.Durées des activités'!D22*'2.Coût salariaux'!$I$6 -> 0 | E22: ='4.Durées des activités'!E22*'2.Coût salariaux'!$I$7 -> 0 | F22: ='4.Durées des activités'!F22*'2.Coût salariaux'!$I$8 -> 0 | G22: ='4.Durées des activités'!G22*'2.Coût salariaux'!$I$9 -> 0 | H22: 103.8893799
A23: Animer/Délivrer la prestation d'appui aux pratiques | B23: ='4.Durées des activités'!B23*'2.Coût salariaux'!$I$4 -> 51.94468994 | C23: ='4.Durées des activités'!C23*'2.Coût salariaux'!$I$5 -> 51.94468994 | D23: ='4.Durées des activités'!D23*'2.Coût salariaux'!$I$6 -> 0 | E23: ='4.Durées des activités'!E23*'2.Coût salariaux'!$I$7 -> 0 | F23: ='4.Durées des activités'!F23*'2.Coût salariaux'!$I$8 -> 0 | G23: ='4.Durées des activités'!G23*'2.Coût salariaux'!$I$9 -> 0 | H23: 103.8893799
A24: Animer/Délivrer la prestation d'appui-conseil | B24: ='4.Durées des activités'!B24*'2.Coût salariaux'!$I$4 -> 51.94468994 | C24: ='4.Durées des activités'!C24*'2.Coût salariaux'!$I$5 -> 51.94468994 | D24: ='4.Durées des activités'!D24*'2.Coût salariaux'!$I$6 -> 0 | E24: ='4.Durées des activités'!E24*'2.Coût salariaux'!$I$7 -> 0 | F24: ='4.Durées des activités'!F24*'2.Coût salariaux'!$I$8 -> 0 | G24: ='4.Durées des activités'!G24*'2.Coût salariaux'!$I$9 -> 0 | H24: 103.8893799
A25: Animer/Délivrer la prestation de formation | B25: ='4.Durées des activités'!B25*'2.Coût salariaux'!$I$4 -> 181.8064148 | C25: ='4.Durées des activités'!C25*'2.Coût salariaux'!$I$5 -> 181.8064148 | D25: ='4.Durées des activités'!D25*'2.Coût salariaux'!$I$6 -> 0 | E25: ='4.Durées des activités'!E25*'2.Coût salariaux'!$I$7 -> 0 | F25: ='4.Durées des activités'!F25*'2.Coût salariaux'!$I$8 -> 0 | G25: ='4.Durées des activités'!G25*'2.Coût salariaux'!$I$9 -> 0 | H25: 363.6128296
A26: Animer/Délivrer la prestation d'observation | B26: ='4.Durées des activités'!B26*'2.Coût salariaux'!$I$4 -> 77.91703491 | C26: ='4.Durées des activités'!C26*'2.Coût salariaux'!$I$5 -> 77.91703491 | D26: ='4.Durées des activités'!D26*'2.Coût salariaux'!$I$6 -> 0 | E26: ='4.Durées des activités'!E26*'2.Coût salariaux'!$I$7 -> 0 | F26: ='4.Durées des activités'!F26*'2.Coût salariaux'!$I$8 -> 0 | G26: ='4.Durées des activités'!G26*'2.Coût salariaux'!$I$9 -> 0 | H26: 155.8340698
A27: Rédiger un bilan, une synthèse de l'évaluation pluridisciplinaire | B27: ='4.Durées des activités'!B27*'2.Coût salariaux'!$I$4 -> 25.97234497 | C27: ='4.Durées des activités'!C27*'2.Coût salariaux'!$I$5 -> 25.97234497 | D27: ='4.Durées des activités'!D27*'2.Coût salariaux'!$I$6 -> 71.36778532 | E27: ='4.Durées des activités'!E27*'2.Coût salariaux'!$I$7 -> 37.11900574 | F27: ='4.Durées des activités'!F27*'2.Coût salariaux'!$I$8 -> 32.85245335 | G27: ='4.Durées des activités'!G27*'2.Coût salariaux'!$I$9 -> 9.524468185 | H27: 202.8084025
A28: Formaliser des préconisations | B28: ='4.Durées des activités'!B28*'2.Coût salariaux'!$I$4 -> 19.47925873 | C28: ='4.Durées des activités'!C28*'2.Coût salariaux'!$I$5 -> 19.47925873 | D28: ='4.Durées des activités'!D28*'2.Coût salariaux'!$I$6 -> 0 | E28: ='4.Durées des activités'!E28*'2.Coût salariaux'!$I$7 -> 0 | F28: ='4.Durées des activités'!F28*'2.Coût salariaux'!$I$8 -> 16.42622668 | G28: ='4.Durées des activités'!G28*'2.Coût salariaux'!$I$9 -> 0 | H28: 55.38474413
A29: Évaluer la prestation "à chaud" | B29: ='4.Durées des activités'!B29*'2.Coût salariaux'!$I$4 -> 0 | C29: ='4.Durées des activités'!C29*'2.Coût salariaux'!$I$5 -> 0 | D29: ='4.Durées des activités'!D29*'2.Coût salariaux'!$I$6 -> 0 | E29: ='4.Durées des activités'!E29*'2.Coût salariaux'!$I$7 -> 0 | F29: ='4.Durées des activités'!F29*'2.Coût salariaux'!$I$8 -> 16.42622668 | G29: ='4.Durées des activités'!G29*'2.Coût salariaux'!$I$9 -> 0 | H29: 16.42622668
A30: Évaluer un suivi de l'intervention à 3 / 6 mois | B30: ='4.Durées des activités'!B30*'2.Coût salariaux'!$I$4 -> 0 | C30: ='4.Durées des activités'!C30*'2.Coût salariaux'!$I$5 -> 0 | D30: ='4.Durées des activités'!D30*'2.Coût salariaux'!$I$6 -> 0 | E30: ='4.Durées des activités'!E30*'2.Coût salariaux'!$I$7 -> 0 | F30: ='4.Durées des activités'!F30*'2.Coût salariaux'!$I$8 -> 49.27868003 | G30: ='4.Durées des activités'!G30*'2.Coût salariaux'!$I$9 -> 0 | H30: 49.27868003
A31: Suivre l'activité RH et budgétaire de façon analytique | B31: ='4.Durées des activités'!B31*'2.Coût salariaux'!$I$4 -> 0 | C31: ='4.Durées des activités'!C31*'2.Coût salariaux'!$I$5 -> 0 | D31: ='4.Durées des activités'!D31*'2.Coût salariaux'!$I$6 -> 0 | E31: ='4.Durées des activités'!E31*'2.Coût salariaux'!$I$7 -> 0 | F31: ='4.Durées des activités'!F31*'2.Coût salariaux'!$I$8 -> 0 | G31: ='4.Durées des activités'!G31*'2.Coût salariaux'!$I$9 -> 19.04893637 | H31: 19.04893637

Sheet 6.ETP par activité
A1: ETP de personnel pour chaque activité
A3: Activités | B3: Educateur | C3: Infirmière | D3: Médecin spécialisé | E3: Psychologue | F3: Référent FR | G3: Administratif
A4: Réceptionner une demande par formulaire, mail ou téléphone | B4: =('4.Durées des activités'!B4/60)/'2.Coût salariaux'!$K$4 -> 0 | C4: =('4.Durées des activités'!C4/60)/'2.Coût salariaux'!$K$5 -> 0 | D4: =('4.Durées des activités'!D4/60)/'2.Coût salariaux'!$K$6 -> 0 | E4: =('4.Durées des activités'!E4/60)/'2.Coût salariaux'!$K$7 -> 0 | F4: =('4.Durées des activités'!F4/60)/'2.Coût salariaux'!$K$8 -> 0 | G4: =('4.Durées des activités'!G4/60)/'2.Coût salariaux'!$K$9 -> 5.185646132e-05
A5: Enregistrer la demande : demandeur, objet de la sollicitation a nature de la sollicitation | B5: =('4.Durées des activités'!B5/60)/'2.Coût salariaux'!$K$4 -> 0 | C5: =('4.Durées des activités'!C5/60)/'2.Coût salariaux'!$K$5 -> 0 | D5: =('4.Durées des activités'!D5/60)/'2.Coût salariaux'!$K$6 -> 0 | E5: =('4.Durées des activités'!E5/60)/'2.Coût salariaux'!$K$7 -> 0 | F5: =('4.Durées des activités'!F5/60)/'2.Coût salariaux'!$K$8 -> 0 | G5: =('4.Durées des activités'!G5/60)/'2.Coût salariaux'!$K$9 -> 5.185646132e-05
A6: Apporter une réponse en termes d'information (téléphone, mail) | B6: =('4.Durées des activités'!B6/60)/'2.Coût salariaux'!$K$4 -> 0 | C6: =('4.Durées des activités'!C6/60)/'2.Coût salariaux'!$K$5 -> 0 | D6: =('4.Durées des activités'!D6/60)/'2.Coût salariaux'!$K$6 -> 0 | E6: =('4.Durées des activités'!E6/60)/'2.Coût salariaux'!$K$7 -> 0 | F6: =('4.Durées des activités'!F6/60)/'2.Coût salariaux'!$K$8 -> 0.0001555693839 | G6: =('4.Durées des activités'!G6/60)/'2.Coût salariaux'!$K$9 -> 0
A7: Adresser une documentation (par mail) | B7: =('4.Durées des activités'!B7/60)/'2.Coût salariaux'!$K$4 -> 0 | C7: =('4.Durées des activités'!C7/60)/'2.Coût salariaux'!$K$5 -> 0 | D7: =('4.Durées des activités'!D7/60)/'2.Coût salariaux'!$K$6 -> 0 | E7: =('4.Durées des activités'!E7/60)/'2.Coût salariaux'!$K$7 -> 0 | F7: =('4.Durées des activités'!F7/60)/'2.Coût salariaux'!$K$8 -> 0 | G7: =('4.Durées des activités'!G7/60)/'2.Coût salariaux'!$K$9 -> 5.185646132e-05
A8: Conduire un entretien téléphonique avec le requérant | B8: =('4.Durées des activités'!B8/60)/'2.Coût salariaux'!$K$4 -> 0 | C8: =('4.Durées des activités'!C8/60)/'2.Coût salariaux'!$K$5 -> 0 | D8: =('4.Durées des activités'!D8/60)/'2.Coût salariaux'!$K$6 -> 0 | E8: =('4.Durées des activités'!E8/60)/'2.Coût salariaux'!$K$7 -> 0 | F8: =('4.Durées des activités'!F8/60)/'2.Coût salariaux'!$K$8 -> 0.0003111387679 | G8: =('4.Durées des activités'!G8/60)/'2.Coût salariaux'!$K$9 -> 0
A9: Recueillir sur un formulaire ad'hoc les éléments utiles et réaliser une première analyse | B9: =('4.Durées des activités'!B9/60)/'2.Coût salariaux'!$K$4 -> 0 | C9: =('4.Durées des activités'!C9/60)/'2.Coût salariaux'!$K$5 -> 0 | D9: =('4.Durées des activités'!D9/60)/'2.Coût salariaux'!$K$6 -> 0 | E9: =('4.Durées des activités'!E9/60)/'2.Coût salariaux'!$K$7 -> 0 | F9: =('4.Durées des activités'!F9/60)/'2.Coût salariaux'!$K$8 -> 0.0006222775358 | G9: =('4.Durées des activités'!G9/60)/'2.Coût salariaux'!$K$9 -> 0
A10: Analyser/décrypter la demande simple en équipe | B10: =('4.Durées des activités'!B10/60)/'2.Coût salariaux'!$K$4 -> 0.0001037129226 | C10: =('4.Durées des activités'!C10/60)/'2.Coût salariaux'!$K$5 -> 0.0001037129226 | D10: =('4.Durées des activités'!D10/60)/'2.Coût salariaux'!$K$6 -> 0 | E10: =('4.Durées des activités'!E10/60)/'2.Coût salariaux'!$K$7 -> 0 | F10: =('4.Durées des activités'!F10/60)/'2.Coût salariaux'!$K$8 -> 0.0003111387679 | G10: =('4.Durées des activités'!G10/60)/'2.Coût salariaux'!$K$9 -> 0
A11: Analyser/décrypter la demande complexe en équipe | B11: =('4.Durées des activités'!B11/60)/'2.Coût salariaux'!$K$4 -> 0.0004667081518 | C11: =('4.Durées des activités'!C11/60)/'2.Coût salariaux'!$K$5 -> 0.0004667081518 | D11: =('4.Durées des activités'!D11/60)/'2.Coût salariaux'!$K$6 -> 0.0004667081518 | E11: =('4.Durées des activités'!E11/60)/'2.Coût salariaux'!$K$7 -> 0.0004667081518 | F11: =('4.Durées des activités'!F11/60)/'2.Coût salariaux'!$K$8 -> 0.0009334163037 | G11: =('4.Durées des activités'!G11/60)/'2.Coût salariaux'!$K$9 -> 0.0001037129226
A12: Formuler une proposition par téléphone / mail auprès du requérant / Tracer la réponse | B12: =('4.Durées des activités'!B12/60)/'2.Coût salariaux'!$K$4 -> 0 | C12: =('4.Durées des activités'!C12/60)/'2.Coût salariaux'!$K$5 -> 0 | D12: =('4.Durées des activités'!D12/60)/'2.Coût salariaux'!$K$6 -> 0 | E12: =('4.Durées des activités'!E12/60)/'2.Coût salariaux'!$K$7 -> 0 | F12: =('4.Durées des activités'!F12/60)/'2.Coût salariaux'!$K$8 -> 0.0001555693839 | G12: =('4.Durées des activités'!G12/60)/'2.Coût salariaux'!$K$9 -> 5.185646132e-05
A13: Planifier l'intervention : professionnels intervenants et calendrier | B13: =('4.Durées des activités'!B13/60)/'2.Coût salariaux'!$K$4 -> 0 | C13: =('4.Durées des activités'!C13/60)/'2.Coût salariaux'!$K$5 -> 0 | D13: =('4.Durées des activités'!D13/60)/'2.Coût salariaux'!$K$6 -> 0 | E13: =('4.Durées des activités'!E13/60)/'2.Coût salariaux'!$K$7 -> 0 | F13: =('4.Durées des activités'!F13/60)/'2.Coût salariaux'!$K$8 -> 0.0001555693839 | G13: =('4.Durées des activités'!G13/60)/'2.Coût salariaux'!$K$9 -> 0
A14: Formaliser le programme d’intervention | B14: =('4.Durées des activités'!B14/60)/'2.Coût salariaux'!$K$4 -> 0 | C14: =('4.Durées des activités'!C14/60)/'2.Coût salariaux'!$K$5 -> 0 | D14: =('4.Durées des activités'!D14/60)/'2.Coût salariaux'!$K$6 -> 0 | E14: =('4.Durées des activités'!E14/60)/'2.Coût salariaux'!$K$7 -> 0 | F14: =('4.Durées des activités'!F14/60)/'2.Coût salariaux'!$K$8 -> 0.0004667081518 | G14: =('4.Durées des activités'!G14/60)/'2.Coût salariaux'!$K$9 -> 0
A15: Faire valider le programme d’intervention par le requérant | B15: =('4.Durées des activités'!B15/60)/'2.Coût salariaux'!$K$4 -> 0 | C15: =('4.Durées des activités'!C15/60)/'2.Coût salariaux'!$K$5 -> 0 | D15: =('4.Durées des activités'!D15/60)/'2.Coût salariaux'!$K$6 -> 0 | E15: =('4.Durées des activités'!E15/60)/'2.Coût salariaux'!$K$7 -> 0 | F15: =('4.Durées des activités'!F15/60)/'2.Coût salariaux'!$K$8 -> 0 | G15: =('4.Durées des activités'!G15/60)/'2.Coût salariaux'!$K$9 -> 0.0002074258453
A16: Rédiger une convention d’intervention | B16: =('4.Durées des activités'!B16/60)/'2.Coût salariaux'!$K$4 -> 0 | C16: =('4.Durées des activités'!C16/60)/'2.Coût salariaux'!$K$5 -> 0 | D16: =('4.Durées des activités'!D16/60)/'2.Coût salariaux'!$K$6 -> 0 | E16: =('4.Durées des activités'!E16/60)/'2.Coût salariaux'!$K$7 -> 0 | F16: =('4.Durées des activités'!F16/60)/'2.Coût salariaux'!$K$8 -> 0.0004667081518 | G16: =('4.Durées des activités'!G16/60)/'2.Coût salariaux'!$K$9 -> 0.0003111387679
A17: Préparer l’accueil de la personne | B17: =('4.Durées des activités'!B17/60)/'2.Coût salariaux'!$K$4 -> 0 | C17: =('4.Durées des activités'!C17/60)/'2.Coût salariaux'!$K$5 -> 0 | D17: =('4.Durées des activités'!D17/60)/'2.Coût salariaux'!$K$6 -> 0 | E17: =('4.Durées des activités'!E17/60)/'2.Coût salariaux'!$K$7 -> 0 | F17: =('4.Durées des activités'!F17/60)/'2.Coût salariaux'!$K$8 -> 0.0006222775358 | G17: =('4.Durées des activités'!G17/60)/'2.Coût salariaux'!$K$9 -> 0
A18: Préparer l'intervention (logistique, supports, outils…) | B18: =('4.Durées des activités'!B18/60)/'2.Coût salariaux'!$K$4 -> 0.0006222775358 | C18: =('4.Durées des activités'!C18/60)/'2.Coût salariaux'!$K$5 -> 0.0006222775358 | D18: =('4.Durées des activités'!D18/60)/'2.Coût salariaux'!$K$6 -> 0 | E18: =('4.Durées des activités'!E18/60)/'2.Coût salariaux'!$K$7 -> 0 | F18: =('4.Durées des activités'!F18/60)/'2.Coût salariaux'!$K$8 -> 0.0002074258453 | G18: =('4.Durées des activités'!G18/60)/'2.Coût salariaux'!$K$9 -> 0
A19: Transmettre la demande à l’organisme de formation en capacité d’assurer / de porter la formation. | B19: =('4.Durées des activités'!B19/60)/'2.Coût salariaux'!$K$4 -> 0 | C19: =('4.Durées des activités'!C19/60)/'2.Coût salariaux'!$K$5 -> 0 | D19: =('4.Durées des activités'!D19/60)/'2.Coût salariaux'!$K$6 -> 0 | E19: =('4.Durées des activités'!E19/60)/'2.Coût salariaux'!$K$7 -> 0 | F19: =('4.Durées des activités'!F19/60)/'2.Coût salariaux'!$K$8 -> 0.0003111387679 | G19: =('4.Durées des activités'!G19/60)/'2.Coût salariaux'!$K$9 -> 0.0001555693839
A20: Déterminer avec l'Organisme de formation porteur les modalités de partenariat (délégation, mise à disposition d'intervenants) | B20: =('4.Durées des activités'!B20/60)/'2.Coût salariaux'!$K$4 -> 0 | C20: =('4.Durées des activités'!C20/60)/'2.Coût salariaux'!$K$5 -> 0 | D20: =('4.Durées des activités'!D20/60)/'2.Coût salariaux'!$K$6 -> 0 | E20: =('4.Durées des activités'!E20/60)/'2.Coût salariaux'!$K$7 -> 0 | F20: =('4.Durées des activités'!F20/60)/'2.Coût salariaux'!$K$8 -> 0.0003111387679 | G20: =('4.Durées des activités'!G20/60)/'2.Coût salariaux'!$K$9 -> 0
A21: S'assurer de la réalisation de l'action de formation par l'Organisme de formation sollicité | B21: =('4.Durées des activités'!B21/60)/'2.Coût salariaux'!$K$4 -> 0 | C21: =('4.Durées des activités'!C21/60)/'2.Coût salariaux'!$K$5 -> 0 | D21: =('4.Durées des activités'!D21/60)/'2.Coût salariaux'!$K$6 -> 0 | E21: =('4.Durées des activités'!E21/60)/'2.Coût salariaux'!$K$7 -> 0 | F21: =('4.Durées des activités'!F21/60)/'2.Coût salariaux'!$K$8 -> 0 | G21: =('4.Durées des activités'!G21/60)/'2.Coût salariaux'!$K$9 -> 0.0003111387679
A22: Animer/Délivrer la prestation de sensibilisation | B22: =('4.Durées des activités'!B22/60)/'2.Coût salariaux'!$K$4 -> 0.001244555072 | C22: =('4.Durées des activités'!C22/60)/'2.Coût salariaux'!$K$5 -> 0.001244555072 | D22: =('4.Durées des activités'!D22/60)/'2.Coût salariaux'!$K$6 -> 0 | E22: =('4.Durées des activités'!E22/60)/'2.Coût salariaux'!$K$7 -> 0 | F22: =('4.Durées des activités'!F22/60)/'2.Coût salariaux'!$K$8 -> 0 | G22: =('4.Durées des activités'!G22/60)/'2.Coût salariaux'!$K$9 -> 0
A23: Animer/Délivrer la prestation d'appui aux pratiques | B23: =('4.Durées des activités'!B23/60)/'2.Coût salariaux'!$K$4 -> 0.001244555072 | C23: =('4.Durées des activités'!C23/60)/'2.Coût salariaux'!$K$5 -> 0.001244555072 | D23: =('4.Durées des activités'!D23/60)/'2.Coût salariaux'!$K$6 -> 0 | E23: =('4.Durées des activités'!E23/60)/'2.Coût salariaux'!$K$7 -> 0 | F23: =('4.Durées des activités'!F23/60)/'2.Coût salariaux'!$K$8 -> 0 | G23: =('4.Durées des activités'!G23/60)/'2.Coût salariaux'!$K$9 -> 0
A24: Animer/Délivrer la prestation d'appui-conseil | B24: =('4.Durées des activités'!B24/60)/'2.Coût salariaux'!$K$4 -> 0.001244555072 | C24: =('4.Durées des activités'!C24/60)/'2.Coût salariaux'!$K$5 -> 0.001244555072 | D24: =('4.Durées des activités'!D24/60)/'2.Coût salariaux'!$K$6 -> 0 | E24: =('4.Durées des activités'!E24/60)/'2.Coût salariaux'!$K$7 -> 0 | F24: =('4.Durées des activités'!F24/60)/'2.Coût salariaux'!$K$8 -> 0 | G24: =('4.Durées des activités'!G24/60)/'2.Coût salariaux'!$K$9 -> 0
A25: Animer/Délivrer la prestation de formation | B25: =('4.Durées des activités'!B25/60)/'2.Coût salariaux'!$K$4 -> 0.00435594275 | C25: =('4.Durées des activités'!C25/60)/'2.Coût salariaux'!$K$5 -> 0.00435594275 | D25: =('4.Durées des activités'!D25/60)/'2.Coût salariaux'!$K$6 -> 0 | E25: =('4.Durées des activités'!E25/60)/'2.Coût salariaux'!$K$7 -> 0 | F25: =('4.Durées des activités'!F25/60)/'2.Coût salariaux'!$K$8 -> 0 | G25: =('4.Durées des activités'!G25/60)/'2.Coût salariaux'!$K$9 -> 0
A26: Animer/Délivrer la prestation d'observation | B26: =('4.Durées des activités'!B26/60)/'2.Coût salariaux'!$K$4 -> 0.001866832607 | C26: =('4.Durées des activités'!C26/60)/'2.Coût salariaux'!$K$5 -> 0.001866832607 | D26: =('4.Durées des activités'!D26/60)/'2.Coût salariaux'!$K$6 -> 0 | E26: =('4.Durées des activités'!E26/60)/'2.Coût salariaux'!$K$7 -> 0 | F26: =('4.Durées des activités'!F26/60)/'2.Coût salariaux'!$K$8 -> 0 | G26: =('4.Durées des activités'!G26/60)/'2.Coût salariaux'!$K$9 -> 0
A27: Rédiger un bilan, une synthèse de l'évaluation pluridisciplinaire | B27: =('4.Durées des activités'!B27/60)/'2.Coût salariaux'!$K$4 -> 0.0006222775358 | C27: =('4.Durées des activités'!C27/60)/'2.Coût salariaux'!$K$5 -> 0.0006222775358 | D27: =('4.Durées des activités'!D27/60)/'2.Coût salariaux'!$K$6 -> 0.0006222775358 | E27: =('4.Durées des activités'!E27/60)/'2.Coût salariaux'!$K$7 -> 0.0006222775358 | F27: =('4.Durées des activités'!F27/60)/'2.Coût salariaux'!$K$8 -> 0.0006222775358 | G27: =('4.Durées des activités'!G27/60)/'2.Coût salariaux'!$K$9 -> 0.0003111387679
A28: Formaliser des préconisations | B28: =('4.Durées des activités'!B28/60)/'2.Coût salariaux'!$K$4 -> 0.0004667081518 | C28: =('4.Durées des activités'!C28/60)/'2.Coût salariaux'!$K$5 -> 0.0004667081518 | D28: =('4.Durées des activités'!D28/60)/'2.Coût salariaux'!$K$6 -> 0 | E28: =('4.Durées des activités'!E28/60)/'2.Coût salariaux'!$K$7 -> 0 | F28: =('4.Durées des activités'!F28/60)/'2.Coût salariaux'!$K$8 -> 0.0003111387679 | G28: =('4.Durées des activités'!G28/60)/'2.Coût salariaux'!$K$9 -> 0
A29: Évaluer la prestation "à chaud" | B29: =('4.Durées des activités'!B29/60)/'2.Coût salariaux'!$K$4 -> 0 | C29: =('4.Durées des activités'!C29/60)/'2.Coût salariaux'!$K$5 -> 0 | D29: =('4.Durées des activités'!D29/60)/'2.Coût salariaux'!$K$6 -> 0 | E29: =('4.Durées des activités'!E29/60)/'2.Coût salariaux'!$K$7 -> 0 | F29: =('4.Durées des activités'!F29/60)/'2.Coût salariaux'!$K$8 -> 0.0003111387679 | G29: =('4.Durées des activités'!G29/60)/'2.Coût salariaux'!$K$9 -> 0
A30: Évaluer un suivi de l'intervention à 3 / 6 mois | B30: =('4.Durées des activités'!B30/60)/'2.Coût salariaux'!$K$4 -> 0 | C30: =('4.Durées des activités'!C30/60)/'2.Coût salariaux'!$K$5 -> 0 | D30: =('4.Durées des activités'!D30/60)/'2.Coût salariaux'!$K$6 -> 0 | E30: =('4.Durées des activités'!E30/60)/'2.Coût salariaux'!$K$7 -> 0 | F30: =('4.Durées des activités'!F30/60)/'2.Coût salariaux'!$K$8 -> 0.0009334163037 | G30: =('4.Durées des activités'!G30/60)/'2.Coût salariaux'!$K$9 -> 0
A31: Suivre l'activité RH et budgétaire de façon analytique | B31: =('4.Durées des activités'!B31/60)/'2.Coût salariaux'!$K$4 -> 0 | C31: =('4.Durées des activités'!C31/60)/'2.Coût salariaux'!$K$5 -> 0 | D31: =('4.Durées des activités'!D31/60)/'2.Coût salariaux'!$K$6 -> 0 | E31: =('4.Durées des activités'!E31/60)/'2.Coût salariaux'!$K$7 -> 0 | F31: =('4.Durées des activités'!F31/60)/'2.Coût salariaux'!$K$8 -> 0 | G31: =('4.Durées des activités'!G31/60)/'2.Coût salariaux'!$K$9 -> 0.0006222775358

Sheet 7.Coûts par prestation
A1: Coût direct de chaque prestation et des activités la composant, en euros
A3: Prestations de la fonction ressource / Activités | B3: Information Documentation | C3: Sensibilisation | D3: Formation | F3: Appui aux pratiques | G3: Appui-conseil | H3: Observation-évaluation partagée
D4: Cas 1 ESMS NON OF | E4: Cas 2 ESMS OF | H4: Cas 1 Sous forme d'accueil temporaire | I4: Cas 2 Au sein de l'ESMS requérant
A5: Réceptionner une demande par formulaire, mail ou téléphone | B5: =IF('3.Activités par prestation'!B5=1,'5.Coût activité profession'!$H4,0) -> 1.587411364 | C5: =IF('3.Activités par prestation'!C5=1,'5.Coût activité profession'!$H4,0) -> 1.587411364 | D5: =IF('3.Activités par prestation'!D5=1,'5.Coût activité profession'!$H4,0) -> 1.587411364 | E5: =IF('3.Activités par prestation'!E5=1,'5.Coût activité profession'!$H4,0) -> 1.587411364 | F5: =IF('3.Activités par prestation'!F5=1,'5.Coût activité profession'!$H4,0) -> 1.587411364 | G5: =IF('3.Activités par prestation'!G5=1,'5.Coût activité profession'!$H4,0) -> 1.587411364 | H5: =IF('3.Activités par prestation'!H5=1,'5.Coût activité profession'!$H4,0) -> 1.587411364 | I5: =IF('3.Activités par prestation'!I5=1,'5.Coût activité profession'!$H4,0) -> 1.587411364
A6: Enregistrer la demande : demandeur, objet de la sollicitation | B6: =IF('3.Activités par prestation'!B6=1,'5.Coût activité profession'!$H5,0) -> 1.587411364 | C6: =IF('3.Activités par prestation'!C6=1,'5.Coût activité profession'!$H5,0) -> 1.587411364 | D6: =IF('3.Activités par prestation'!D6=1,'5.Coût activité profession'!$H5,0) -> 1.587411364 | E6: =IF('3.Activités par prestation'!E6=1,'5.Coût activité profession'!$H5,0) -> 1.587411364 | F6: =IF('3.Activités par prestation'!F6=1,'5.Coût activité profession'!$H5,0) -> 1.587411364 | G6: =IF('3.Activités par prestation'!G6=1,'5.Coût activité profession'!$H5,0) -> 1.587411364 | H6: =IF('3.Activités par prestation'!H6=1,'5.Coût activité profession'!$H5,0) -> 1.587411364 | I6: =IF('3.Activités par prestation'!I6=1,'5.Coût activité profession'!$H5,0) -> 1.587411364
A7: Apporter une réponse en termes d'information (téléphone, mail) | B7: =IF('3.Activités par prestation'!B7=1,'5.Coût activité profession'!$H6,0) -> 8.213113338 | C7: =IF('3.Activités par prestation'!C7=1,'5.Coût activité profession'!$H6,0) -> 0 | D7: =IF('3.Activités par prestation'!D7=1,'5.Coût activité profession'!$H6,0) -> 0 | E7: =IF('3.Activités par prestation'!E7=1,'5.Coût activité profession'!$H6,0) -> 0 | F7: =IF('3.Activités par prestation'!F7=1,'5.Coût activité profession'!$H6,0) -> 0 | G7: =IF('3.Activités par prestation'!G7=1,'5.Coût activité profession'!$H6,0) -> 0 | H7: =IF('3.Activités par prestation'!H7=1,'5.Coût activité profession'!$H6,0) -> 0 | I7: =IF('3.Activités par prestation'!I7=1,'5.Coût activité profession'!$H6,0) -> 0
A8: Adresser une documentation (par mail) | B8: =IF('3.Activités par prestation'!B8=1,'5.Coût activité profession'!$H7,0) -> 1.587411364 | C8: =IF('3.Activités par prestation'!C8=1,'5.Coût activité profession'!$H7,0) -> 0 | D8: =IF('3.Activités par prestation'!D8=1,'5.Coût activité profession'!$H7,0) -> 0 | E8: =IF('3.Activités par prestation'!E8=1,'5.Coût activité profession'!$H7,0) -> 0 | F8: =IF('3.Activités par prestation'!F8=1,'5.Coût activité profession'!$H7,0) -> 0 | G8: =IF('3.Activités par prestation'!G8=1,'5.Coût activité profession'!$H7,0) -> 0 | H8: =IF('3.Activités par prestation'!H8=1,'5.Coût activité profession'!$H7,0) -> 0 | I8: =IF('3.Activités par prestation'!I8=1,'5.Coût activité profession'!$H7,0) -> 0
A9: Conduire un entretien téléphonique avec le requérant | B9: =IF('3.Activités par prestation'!B9=1,'5.Coût activité profession'!$H8,0) -> 0 | C9: =IF('3.Activités par prestation'!C9=1,'5.Coût activité profession'!$H8,0) -> 16.42622668 | D9: =IF('3.Activités par prestation'!D9=1,'5.Coût activité profession'!$H8,0) -> 16.42622668 | E9: =IF('3.Activités par prestation'!E9=1,'5.Coût activité profession'!$H8,0) -> 16.42622668 | F9: =IF('3.Activités par prestation'!F9=1,'5.Coût activité profession'!$H8,0) -> 16.42622668 | G9: =IF('3.Activités par prestation'!G9=1,'5.Coût activité profession'!$H8,0) -> 16.42622668 | H9: =IF('3.Activités par prestation'!H9=1,'5.Coût activité profession'!$H8,0) -> 16.42622668 | I9: =IF('3.Activités par prestation'!I9=1,'5.Coût activité profession'!$H8,0) -> 16.42622668
A10: Recueillir sur un formulaire ad'hoc les éléments utiles et réaliser une première analyse | B10: =IF('3.Activités par prestation'!B10=1,'5.Coût activité profession'!$H9,0) -> 0 | C10: =IF('3.Activités par prestation'!C10=1,'5.Coût activité profession'!$H9,0) -> 32.85245335 | D10: =IF('3.Activités par prestation'!D10=1,'5.Coût activité profession'!$H9,0) -> 32.85245335 | E10: =IF('3.Activités par prestation'!E10=1,'5.Coût activité profession'!$H9,0) -> 32.85245335 | F10: =IF('3.Activités par prestation'!F10=1,'5.Coût activité profession'!$H9,0) -> 32.85245335 | G10: =IF('3.Activités par prestation'!G10=1,'5.Coût activité profession'!$H9,0) -> 32.85245335 | H10: =IF('3.Activités par prestation'!H10=1,'5.Coût activité profession'!$H9,0) -> 32.85245335 | I10: =IF('3.Activités par prestation'!I10=1,'5.Coût activité profession'!$H9,0) -> 32.85245335
A11: Analyser/décrypter la demande simple en équipe | B11: =IF('3.Activités par prestation'!B11=1,'5.Coût activité profession'!$H10,0) -> 0 | C11: =IF('3.Activités par prestation'!C11=1,'5.Coût activité profession'!$H10,0) -> 25.083675 | D11: =IF('3.Activités par prestation'!D11=1,'5.Coût activité profession'!$H10,0) -> 0 | E11: =IF('3.Activités par prestation'!E11=1,'5.Coût activité profession'!$H10,0) -> 0 | F11: =IF('3.Activités par prestation'!F11=1,'5.Coût activité profession'!$H10,0) -> 0 | G11: =IF('3.Activités par prestation'!G11=1,'5.Coût activité profession'!$H10,0) -> 0 | H11: =IF('3.Activités par prestation'!H11=1,'5.Coût activité profession'!$H10,0) -> 0 | I11: =IF('3.Activités par prestation'!I11=1,'5.Coût activité profession'!$H10,0) -> 0
A12: Analyser/décrypter la demande complexe en équipe | B12: =IF('3.Activités par prestation'!B12=1,'5.Coût activité profession'!$H11,0) -> 0 | C12: =IF('3.Activités par prestation'!C12=1,'5.Coût activité profession'!$H11,0) -> 0 | D12: =IF('3.Activités par prestation'!D12=1,'5.Coût activité profession'!$H11,0) -> 0 | E12: =IF('3.Activités par prestation'!E12=1,'5.Coût activité profession'!$H11,0) -> 172.7771135 | F12: =IF('3.Activités par prestation'!F12=1,'5.Coût activité profession'!$H11,0) -> 172.7771135 | G12: =IF('3.Activités par prestation'!G12=1,'5.Coût activité profession'!$H11,0) -> 172.7771135 | H12: =IF('3.Activités par prestation'!H12=1,'5.Coût activité profession'!$H11,0) -> 0 | I12: =IF('3.Activités par prestation'!I12=1,'5.Coût activité profession'!$H11,0) -> 172.7771135
A13: Formuler une proposition par téléphone / mail auprès du requérant / Tracer la réponse | B13: =IF('3.Activités par prestation'!B13=1,'5.Coût activité profession'!$H12,0) -> 0 | C13: =IF('3.Activités par prestation'!C13=1,'5.Coût activité profession'!$H12,0) -> 9.800524702 | D13: =IF('3.Activités par prestation'!D13=1,'5.Coût activité profession'!$H12,0) -> 0 | E13: =IF('3.Activités par prestation'!E13=1,'5.Coût activité profession'!$H12,0) -> 9.800524702 | F13: =IF('3.Activités par prestation'!F13=1,'5.Coût activité profession'!$H12,0) -> 9.800524702 | G13: =IF('3.Activités par prestation'!G13=1,'5.Coût activité profession'!$H12,0) -> 9.800524702 | H13: =IF('3.Activités par prestation'!H13=1,'5.Coût activité profession'!$H12,0) -> 0 | I13: =IF('3.Activités par prestation'!I13=1,'5.Coût activité profession'!$H12,0) -> 9.800524702
A14: Planifier l'intervention : professionnels intervenants et calendrier | B14: =IF('3.Activités par prestation'!B14=1,'5.Coût activité profession'!$H13,0) -> 0 | C14: =IF('3.Activités par prestation'!C14=1,'5.Coût activité profession'!$H13,0) -> 8.213113338 | D14: =IF('3.Activités par prestation'!D14=1,'5.Coût activité profession'!$H13,0) -> 0 | E14: =IF('3.Activités par prestation'!E14=1,'5.Coût activité profession'!$H13,0) -> 8.213113338 | F14: =IF('3.Activités par prestation'!F14=1,'5.Coût activité profession'!$H13,0) -> 8.213113338 | G14: =IF('3.Activités par prestation'!G14=1,'5.Coût activité profession'!$H13,0) -> 8.213113338 | H14: =IF('3.Activités par prestation'!H14=1,'5.Coût activité profession'!$H13,0) -> 0 | I14: =IF('3.Activités par prestation'!I14=1,'5.Coût activité profession'!$H13,0) -> 0
A15: Formaliser le programme d’intervention | B15: =IF('3.Activités par prestation'!B15=1,'5.Coût activité profession'!$H14,0) -> 0 | C15: =IF('3.Activités par prestation'!C15=1,'5.Coût activité profession'!$H14,0) -> 24.63934001 | D15: =IF('3.Activités par prestation'!D15=1,'5.Coût activité profession'!$H14,0) -> 0 | E15: =IF('3.Activités par prestation'!E15=1,'5.Coût activité profession'!$H14,0) -> 24.63934001 | F15: =IF('3.Activités par prestation'!F15=1,'5.Coût activité profession'!$H14,0) -> 24.63934001 | G15: =IF('3.Activités par prestation'!G15=1,'5.Coût activité profession'!$H14,0) -> 24.63934001 | H15: =IF('3.Activités par prestation'!H15=1,'5.Coût activité profession'!$H14,0) -> 0 | I15: =IF('3.Activités par prestation'!I15=1,'5.Coût activité profession'!$H14,0) -> 0
A16: Faire valider le programme d’intervention par le requérant | B16: =IF('3.Activités par prestation'!B16=1,'5.Coût activité profession'!$H15,0) -> 0 | C16: =IF('3.Activités par prestation'!C16=1,'5.Coût activité profession'!$H15,0) -> 6.349645457 | D16: =IF('3.Activités par prestation'!D16=1,'5.Coût activité profession'!$H15,0) -> 0 | E16: =IF('3.Activités par prestation'!E16=1,'5.Coût activité profession'!$H15,0) -> 6.349645457 | F16: =IF('3.Activités par prestation'!F16=1,'5.Coût activité profession'!$H15,0) -> 6.349645457 | G16: =IF('3.Activités par prestation'!G16=1,'5.Coût activité profession'!$H15,0) -> 6.349645457 | H16: =IF('3.Activités par prestation'!H16=1,'5.Coût activité profession'!$H15,0) -> 0 | I16: =IF('3.Activités par prestation'!I16=1,'5.Coût activité profession'!$H15,0) -> 0
A17: Rédiger une convention d’intervention | B17: =IF('3.Activités par prestation'!B17=1,'5.Coût activité profession'!$H16,0) -> 0 | C17: =IF('3.Activités par prestation'!C17=1,'5.Coût activité profession'!$H16,0) -> 34.1638082 | D17: =IF('3.Activités par prestation'!D17=1,'5.Coût activité profession'!$H16,0) -> 0 | E17: =IF('3.Activités par prestation'!E17=1,'5.Coût activité profession'!$H16,0) -> 34.1638082 | F17: =IF('3.Activités par prestation'!F17=1,'5.Coût activité profession'!$H16,0) -> 34.1638082 | G17: =IF('3.Activités par prestation'!G17=1,'5.Coût activité profession'!$H16,0) -> 34.1638082 | H17: =IF('3.Activités par prestation'!H17=1,'5.Coût activité profession'!$H16,0) -> 0 | I17: =IF('3.Activités par prestation'!I17=1,'5.Coût activité profession'!$H16,0) -> 34.1638082
A18: Préparer l’accueil de la personne (emploi du temps, service…) | B18: =IF('3.Activités par prestation'!B18=1,'5.Coût activité profession'!$H17,0) -> 0 | C18: =IF('3.Activités par prestation'!C18=1,'5.Coût activité profession'!$H17,0) -> 0 | D18: =IF('3.Activités par prestation'!D18=1,'5.Coût activité profession'!$H17,0) -> 0 | E18: =IF('3.Activités par prestation'!E18=1,'5.Coût activité profession'!$H17,0) -> 0 | F18: =IF('3.Activités par prestation'!F18=1,'5.Coût activité profession'!$H17,0) -> 0 | G18: =IF('3.Activités par prestation'!G18=1,'5.Coût activité profession'!$H17,0) -> 0 | H18: =IF('3.Activités par prestation'!H18=1,'5.Coût activité profession'!$H17,0) -> 0 | I18: =IF('3.Activités par prestation'!I18=1,'5.Coût activité profession'!$H17,0) -> 0
A19: Préparer l'intervention (logistique, supports, outils…) | B19: =IF('3.Activités par prestation'!B19=1,'5.Coût activité profession'!$H18,0) -> 0 | C19: =IF('3.Activités par prestation'!C19=1,'5.Coût activité profession'!$H18,0) -> 0 | D19: =IF('3.Activités par prestation'!D19=1,'5.Coût activité profession'!$H18,0) -> 0 | E19: =IF('3.Activités par prestation'!E19=1,'5.Coût activité profession'!$H18,0) -> 62.89550772 | F19: =IF('3.Activités par prestation'!F19=1,'5.Coût activité profession'!$H18,0) -> 62.89550772 | G19: =IF('3.Activités par prestation'!G19=1,'5.Coût activité profession'!$H18,0) -> 62.89550772 | H19: =IF('3.Activités par prestation'!H19=1,'5.Coût activité profession'!$H18,0) -> 0 | I19: =IF('3.Activités par prestation'!I19=1,'5.Coût activité profession'!$H18,0) -> 62.89550772
A20: Transmettre la demande à l’organisme de formation en capacité d’assurer / de porter la formation. | B20: =IF('3.Activités par prestation'!B20=1,'5.Coût activité profession'!$H19,0) -> 0 | C20: =IF('3.Activités par prestation'!C20=1,'5.Coût activité profession'!$H19,0) -> 0 | D20: =IF('3.Activités par prestation'!D20=1,'5.Coût activité profession'!$H19,0) -> 21.18846077 | E20: =IF('3.Activités par prestation'!E20=1,'5.Coût activité profession'!$H19,0) -> 0 | F20: =IF('3.Activités par prestation'!F20=1,'5.Coût activité profession'!$H19,0) -> 0 | G20: =IF('3.Activités par prestation'!G20=1,'5.Coût activité profession'!$H19,0) -> 0 | H20: =IF('3.Activités par prestation'!H20=1,'5.Coût activité profession'!$H19,0) -> 0 | I20: =IF('3.Activités par prestation'!I20=1,'5.Coût activité profession'!$H19,0) -> 0
A21: Déterminer avec l'Organisme de formation porteur les modalités de partenariat (délégation, mise à disposition d'intervenants) | B21: =IF('3.Activités par prestation'!B21=1,'5.Coût activité profession'!$H20,0) -> 0 | C21: =IF('3.Activités par prestation'!C21=1,'5.Coût activité profession'!$H20,0) -> 0 | D21: =IF('3.Activités par prestation'!D21=1,'5.Coût activité profession'!$H20,0) -> 16.42622668 | E21: =IF('3.Activités par prestation'!E21=1,'5.Coût activité profession'!$H20,0) -> 0 | F21: =IF('3.Activités par prestation'!F21=1,'5.Coût activité profession'!$H20,0) -> 0 | G21: =IF('3.Activités par prestation'!G21=1,'5.Coût activité profession'!$H20,0) -> 0 | H21: =IF('3.Activités par prestation'!H21=1,'5.Coût activité profession'!$H20,0) -> 0 | I21: =IF('3.Activités par prestation'!I21=1,'5.Coût activité profession'!$H20,0) -> 0
A22: S'assurer de la réalisation de l'action de formation par l'Organisme de formation sollicité | B22: =IF('3.Activités par prestation'!B22=1,'5.Coût activité profession'!$H21,0) -> 0 | C22: =IF('3.Activités par prestation'!C22=1,'5.Coût activité profession'!$H21,0) -> 0 | D22: =IF('3.Activités par prestation'!D22=1,'5.Coût activité profession'!$H21,0) -> 9.524468185 | E22: =IF('3.Activités par prestation'!E22=1,'5.Coût activité profession'!$H21,0) -> 0 | F22: =IF('3.Activités par prestation'!F22=1,'5.Coût activité profession'!$H21,0) -> 0 | G22: =IF('3.Activités par prestation'!G22=1,'5.Coût activité profession'!$H21,0) -> 0 | H22: =IF('3.Activités par prestation'!H22=1,'5.Coût activité profession'!$H21,0) -> 0 | I22: =IF('3.Activités par prestation'!I22=1,'5.Coût activité profession'!$H21,0) -> 0
A23: Animer/Délivrer la prestation de sensibilisation | B23: =IF('3.Activités par prestation'!B23=1,'5.Coût activité profession'!$H22,0) -> 0 | C23: =IF('3.Activités par prestation'!C23=1,'5.Coût activité profession'!$H22,0) -> 103.8893799 | D23: =IF('3.Activités par prestation'!D23=1,'5.Coût activité profession'!$H22,0) -> 0 | E23: =IF('3.Activités par prestation'!E23=1,'5.Coût activité profession'!$H22,0) -> 0 | F23: =IF('3.Activités par prestation'!F23=1,'5.Coût activité profession'!$H22,0) -> 0 | G23: =IF('3.Activités par prestation'!G23=1,'5.Coût activité profession'!$H22,0) -> 0 | H23: =IF('3.Activités par prestation'!H23=1,'5.Coût activité profession'!$H22,0) -> 0 | I23: =IF('3.Activités par prestation'!I23=1,'5.Coût activité profession'!$H22,0) -> 0
A24: Animer/Délivrer la prestation d'appui aux pratiques | B24: =IF('3.Activités par prestation'!B24=1,'5.Coût activité profession'!$H23,0) -> 0 | C24: =IF('3.Activités par prestation'!C24=1,'5.Coût activité profession'!$H23,0) -> 0 | D24: =IF('3.Activités par prestation'!D24=1,'5.Coût activité profession'!$H23,0) -> 0 | E24: =IF('3.Activités par prestation'!E24=1,'5.Coût activité profession'!$H23,0) -> 0 | F24: =IF('3.Activités par prestation'!F24=1,'5.Coût activité profession'!$H23,0) -> 103.8893799 | G24: =IF('3.Activités par prestation'!G24=1,'5.Coût activité profession'!$H23,0) -> 0 | H24: =IF('3.Activités par prestation'!H24=1,'5.Coût activité profession'!$H23,0) -> 0 | I24: =IF('3.Activités par prestation'!I24=1,'5.Coût activité profession'!$H23,0) -> 0
A25: Animer/Délivrer la prestation d'appui-conseil | B25: =IF('3.Activités par prestation'!B25=1,'5.Coût activité profession'!$H24,0) -> 0 | C25: =IF('3.Activités par prestation'!C25=1,'5.Coût activité profession'!$H24,0) -> 0 | D25: =IF('3.Activités par prestation'!D25=1,'5.Coût activité profession'!$H24,0) -> 0 | E25: =IF('3.Activités par prestation'!E25=1,'5.Coût activité profession'!$H24,0) -> 0 | F25: =IF('3.Activités par prestation'!F25=1,'5.Coût activité profession'!$H24,0) -> 0 | G25: =IF('3.Activités par prestation'!G25=1,'5.Coût activité profession'!$H24,0) -> 103.8893799 | H25: =IF('3.Activités par prestation'!H25=1,'5.Coût activité profession'!$H24,0) -> 0 | I25: =IF('3.Activités par prestation'!I25=1,'5.Coût activité profession'!$H24,0) -> 0
A26: Animer/Délivrer la prestation de formation | B26: =IF('3.Activités par prestation'!B26=1,'5.Coût activité profession'!$H25,0) -> 0 | C26: =IF('3.Activités par prestation'!C26=1,'5.Coût activité profession'!$H25,0) -> 0 | D26: =IF('3.Activités par prestation'!D26=1,'5.Coût activité profession'!$H25,0) -> 0 | E26: =IF('3.Activités par prestation'!E26=1,'5.Coût activité profession'!$H25,0) -> 363.6128296 | F26: =IF('3.Activités par prestation'!F26=1,'5.Coût activité profession'!$H25,0) -> 0 | G26: =IF('3.Activités par prestation'!G26=1,'5.Coût activité profession'!$H25,0) -> 0 | H26: =IF('3.Activités par prestation'!H26=1,'5.Coût activité profession'!$H25,0) -> 0 | I26: =IF('3.Activités par prestation'!I26=1,'5.Coût activité profession'!$H25,0) -> 0
A27: Animer/Délivrer la prestation d'observation | B27: =IF('3.Activités par prestation'!B27=1,'5.Coût activité profession'!$H26,0) -> 0 | C27: =IF('3.Activités par prestation'!C27=1,'5.Coût activité profession'!$H26,0) -> 0 | D27: =IF('3.Activités par prestation'!D27=1,'5.Coût activité profession'!$H26,0) -> 0 | E27: =IF('3.Activités par prestation'!E27=1,'5.Coût activité profession'!$H26,0) -> 0 | F27: =IF('3.Activités par prestation'!F27=1,'5.Coût activité profession'!$H26,0) -> 0 | G27: =IF('3.Activités par prestation'!G27=1,'5.Coût activité profession'!$H26,0) -> 0 | H27: =IF('3.Activités par prestation'!H27=1,'5.Coût activité profession'!$H26,0) -> 0 | I27: =IF('3.Activités par prestation'!I27=1,'5.Coût activité profession'!$H26,0) -> 155.8340698
A28: Rédiger un bilan, une synthèse de l'évaluation pluridisciplinaire | B28: =IF('3.Activités par prestation'!B28=1,'5.Coût activité profession'!$H27,0) -> 0 | C28: =IF('3.Activités par prestation'!C28=1,'5.Coût activité profession'!$H27,0) -> 0 | D28: =IF('3.Activités par prestation'!D28=1,'5.Coût activité profession'!$H27,0) -> 0 | E28: =IF('3.Activités par prestation'!E28=1,'5.Coût activité profession'!$H27,0) -> 0 | F28: =IF('3.Activités par prestation'!F28=1,'5.Coût activité profession'!$H27,0) -> 0 | G28: =IF('3.Activités par prestation'!G28=1,'5.Coût activité profession'!$H27,0) -> 0 | H28: =IF('3.Activités par prestation'!H28=1,'5.Coût activité profession'!$H27,0) -> 0 | I28: =IF('3.Activités par prestation'!I28=1,'5.Coût activité profession'!$H27,0) -> 202.8084025
A29: Formaliser des préconisations | B29: =IF('3.Activités par prestation'!B29=1,'5.Coût activité profession'!$H28,0) -> 0 | C29: =IF('3.Activités par prestation'!C29=1,'5.Coût activité profession'!$H28,0) -> 0 | D29: =IF('3.Activités par prestation'!D29=1,'5.Coût activité profession'!$H28,0) -> 0 | E29: =IF('3.Activités par prestation'!E29=1,'5.Coût activité profession'!$H28,0) -> 0 | F29: =IF('3.Activités par prestation'!F29=1,'5.Coût activité profession'!$H28,0) -> 0 | G29: =IF('3.Activités par prestation'!G29=1,'5.Coût activité profession'!$H28,0) -> 55.38474413 | H29: =IF('3.Activités par prestation'!H29=1,'5.Coût activité profession'!$H28,0) -> 55.38474413 | I29: =IF('3.Activités par prestation'!I29=1,'5.Coût activité profession'!$H28,0) -> 55.38474413
A30: Évaluer la prestation "à chaud" | B30: =IF('3.Activités par prestation'!B30=1,'5.Coût activité profession'!$H29,0) -> 0 | C30: =IF('3.Activités par prestation'!C30=1,'5.Coût activité profession'!$H29,0) -> 16.42622668 | D30: =IF('3.Activités par prestation'!D30=1,'5.Coût activité profession'!$H29,0) -> 0 | E30: =IF('3.Activités par prestation'!E30=1,'5.Coût activité profession'!$H29,0) -> 0 | F30: =IF('3.Activités par prestation'!F30=1,'5.Coût activité profession'!$H29,0) -> 0 | G30: =IF('3.Activités par prestation'!G30=1,'5.Coût activité profession'!$H29,0) -> 16.42622668 | H30: =IF('3.Activités par prestation'!H30=1,'5.Coût activité profession'!$H29,0) -> 0 | I30: =IF('3.Activités par prestation'!I30=1,'5.Coût activité profession'!$H29,0) -> 16.42622668
A31: Évaluer un suivi de l'intervention à 3 / 6 mois | B31: =IF('3.Activités par prestation'!B31=1,'5.Coût activité profession'!$H30,0) -> 0 | C31: =IF('3.Activités par prestation'!C31=1,'5.Coût activité profession'!$H30,0) -> 0 | D31: =IF('3.Activités par prestation'!D31=1,'5.Coût activité profession'!$H30,0) -> 49.27868003 | E31: =IF('3.Activités par prestation'!E31=1,'5.Coût activité profession'!$H30,0) -> 49.27868003 | F31: =IF('3.Activités par prestation'!F31=1,'5.Coût activité profession'!$H30,0) -> 49.27868003 | G31: =IF('3.Activités par prestation'!G31=1,'5.Coût activité profession'!$H30,0) -> 49.27868003 | H31: =IF('3.Activités par prestation'!H31=1,'5.Coût activité profession'!$H30,0) -> 49.27868003 | I31: =IF('3.Activités par prestation'!I31=1,'5.Coût activité profession'!$H30,0) -> 49.27868003
A32: Suivre l'activité RH et budgétaire de façon analytique | B32: =IF('3.Activités par prestation'!B32=1,'5.Coût activité profession'!$H31,0) -> 0 | C32: =IF('3.Activités par prestation'!C32=1,'5.Coût activité profession'!$H31,0) -> 19.04893637 | D32: =IF('3.Activités par prestation'!D32=1,'5.Coût activité profession'!$H31,0) -> 19.04893637 | E32: =IF('3.Activités par prestation'!E32=1,'5.Coût activité profession'!$H31,0) -> 19.04893637 | F32: =IF('3.Activités par prestation'!F32=1,'5.Coût activité profession'!$H31,0) -> 19.04893637 | G32: =IF('3.Activités par prestation'!G32=1,'5.Coût activité profession'!$H31,0) -> 19.04893637 | H32: =IF('3.Activités par prestation'!H32=1,'5.Coût activité profession'!$H31,0) -> 19.04893637 | I32: =IF('3.Activités par prestation'!I32=1,'5.Coût activité profession'!$H31,0) -> 19.04893637
A33: Coût de la prestation | B33: =SUM(B5:B32) -> 12.97534743 | C33: =SUM(C5:C32) -> 300.0681524 | D33: 167.9202748 | E33: 803.2330017 | F33: 543.509552 | G33: 615.3205228 | H33: 176.1658633 | I33: 830.8715165

Sheet 8.ETP par prestation
A1: ETP de personnel nécessités par chaque prestation
B3: Information Documentation | C3: Sensibilisation | D3: Formation | F3: Appui aux pratiques | G3: Appui-conseil | H3: Observation-évaluation partagée
D4: Cas 1 ESMS NON OF | E4: Cas 2 ESMS OF | H4: Cas 1 Sous forme d'accueil temporaire | I4: Cas 2 Au sein de l'ESMS requérant
A5: Educateur | B5: =SUMPRODUCT('3.Activités par prestation'!B$5:B$32,'6.ETP par activité'!$B4:$B31) -> 0 | C5: =SUMPRODUCT('3.Activités par prestation'!C$5:C$32,'6.ETP par activité'!$B4:$B31) -> 0.001348267994 | D5: =SUMPRODUCT('3.Activités par prestation'!D$5:D$32,'6.ETP par activité'!$B4:$B31) -> 0 | E5: =SUMPRODUCT('3.Activités par prestation'!E$5:E$32,'6.ETP par activité'!$B4:$B31) -> 0.005444928438 | F5: =SUMPRODUCT('3.Activités par prestation'!F$5:F$32,'6.ETP par activité'!$B4:$B31) -> 0.002333540759 | G5: =SUMPRODUCT('3.Activités par prestation'!G$5:G$32,'6.ETP par activité'!$B4:$B31) -> 0.002800248911 | H5: =SUMPRODUCT('3.Activités par prestation'!H$5:H$32,'6.ETP par activité'!$B4:$B31) -> 0.0004667081518 | I5: =SUMPRODUCT('3.Activités par prestation'!I$5:I$32,'6.ETP par activité'!$B4:$B31) -> 0.004044803983
A6: Infirmière | B6: =SUMPRODUCT('3.Activités par prestation'!B$5:B$32,'6.ETP par activité'!$C4:$C31) -> 0 | C6: =SUMPRODUCT('3.Activités par prestation'!C$5:C$32,'6.ETP par activité'!$C4:$C31) -> 0.001348267994 | D6: =SUMPRODUCT('3.Activités par prestation'!D$5:D$32,'6.ETP par activité'!$C4:$C31) -> 0 | E6: =SUMPRODUCT('3.Activités par prestation'!E$5:E$32,'6.ETP par activité'!$C4:$C31) -> 0.005444928438 | F6: =SUMPRODUCT('3.Activités par prestation'!F$5:F$32,'6.ETP par activité'!$C4:$C31) -> 0.002333540759 | G6: =SUMPRODUCT('3.Activités par prestation'!G$5:G$32,'6.ETP par activité'!$C4:$C31) -> 0.002800248911 | H6: =SUMPRODUCT('3.Activités par prestation'!H$5:H$32,'6.ETP par activité'!$C4:$C31) -> 0.0004667081518 | I6: =SUMPRODUCT('3.Activités par prestation'!I$5:I$32,'6.ETP par activité'!$C4:$C31) -> 0.004044803983
A7: Médecin spécialisé | B7: =SUMPRODUCT('3.Activités par prestation'!B$5:B$32,'6.ETP par activité'!$D4:$D31) -> 0 | C7: =SUMPRODUCT('3.Activités par prestation'!C$5:C$32,'6.ETP par activité'!$D4:$D31) -> 0 | D7: =SUMPRODUCT('3.Activités par prestation'!D$5:D$32,'6.ETP par activité'!$D4:$D31) -> 0 | E7: =SUMPRODUCT('3.Activités par prestation'!E$5:E$32,'6.ETP par activité'!$D4:$D31) -> 0.0004667081518 | F7: =SUMPRODUCT('3.Activités par prestation'!F$5:F$32,'6.ETP par activité'!$D4:$D31) -> 0.0004667081518 | G7: =SUMPRODUCT('3.Activités par prestation'!G$5:G$32,'6.ETP par activité'!$D4:$D31) -> 0.0004667081518 | H7: =SUMPRODUCT('3.Activités par prestation'!H$5:H$32,'6.ETP par activité'!$D4:$D31) -> 0 | I7: =SUMPRODUCT('3.Activités par prestation'!I$5:I$32,'6.ETP par activité'!$D4:$D31) -> 0.001088985688
A8: Psychologue | B8: =SUMPRODUCT('3.Activités par prestation'!B$5:B$32,'6.ETP par activité'!$E4:$E31) -> 0 | C8: =SUMPRODUCT('3.Activités par prestation'!C$5:C$32,'6.ETP par activité'!$E4:$E31) -> 0 | D8: =SUMPRODUCT('3.Activités par prestation'!D$5:D$32,'6.ETP par activité'!$E4:$E31) -> 0 | E8: =SUMPRODUCT('3.Activités par prestation'!E$5:E$32,'6.ETP par activité'!$E4:$E31) -> 0.0004667081518 | F8: =SUMPRODUCT('3.Activités par prestation'!F$5:F$32,'6.ETP par activité'!$E4:$E31) -> 0.0004667081518 | G8: =SUMPRODUCT('3.Activités par prestation'!G$5:G$32,'6.ETP par activité'!$E4:$E31) -> 0.0004667081518 | H8: =SUMPRODUCT('3.Activités par prestation'!H$5:H$32,'6.ETP par activité'!$E4:$E31) -> 0 | I8: =SUMPRODUCT('3.Activités par prestation'!I$5:I$32,'6.ETP par activité'!$E4:$E31) -> 0.001088985688
A9: Référent FR | B9: =SUMPRODUCT('3.Activités par prestation'!B$5:B$32,'6.ETP par activité'!$F4:$F31) -> 0.0001555693839 | C9: =SUMPRODUCT('3.Activités par prestation'!C$5:C$32,'6.ETP par activité'!$F4:$F31) -> 0.002800248911 | D9: =SUMPRODUCT('3.Activités par prestation'!D$5:D$32,'6.ETP par activité'!$F4:$F31) -> 0.002489110143 | E9: =SUMPRODUCT('3.Activités par prestation'!E$5:E$32,'6.ETP par activité'!$F4:$F31) -> 0.004252229828 | F9: =SUMPRODUCT('3.Activités par prestation'!F$5:F$32,'6.ETP par activité'!$F4:$F31) -> 0.004252229828 | G9: =SUMPRODUCT('3.Activités par prestation'!G$5:G$32,'6.ETP par activité'!$F4:$F31) -> 0.004874507364 | H9: =SUMPRODUCT('3.Activités par prestation'!H$5:H$32,'6.ETP par activité'!$F4:$F31) -> 0.002177971375 | I9: =SUMPRODUCT('3.Activités par prestation'!I$5:I$32,'6.ETP par activité'!$F4:$F31) -> 0.004874507364
A10: Administratif | B10: =SUMPRODUCT('3.Activités par prestation'!B$5:B$32,'6.ETP par activité'!$G4:$G31) -> 0.0001555693839 | C10: =SUMPRODUCT('3.Activités par prestation'!C$5:C$32,'6.ETP par activité'!$G4:$G31) -> 0.001296411533 | D10: =SUMPRODUCT('3.Activités par prestation'!D$5:D$32,'6.ETP par activité'!$G4:$G31) -> 0.00119269861 | E10: =SUMPRODUCT('3.Activités par prestation'!E$5:E$32,'6.ETP par activité'!$G4:$G31) -> 0.001400124456 | F10: =SUMPRODUCT('3.Activités par prestation'!F$5:F$32,'6.ETP par activité'!$G4:$G31) -> 0.001400124456 | G10: =SUMPRODUCT('3.Activités par prestation'!G$5:G$32,'6.ETP par activité'!$G4:$G31) -> 0.001400124456 | H10: =SUMPRODUCT('3.Activités par prestation'!H$5:H$32,'6.ETP par activité'!$G4:$G31) -> 0.0007259904584 | I10: =SUMPRODUCT('3.Activités par prestation'!I$5:I$32,'6.ETP par activité'!$G4:$G31) -> 0.001503837378

Sheet 9.Valorisation financière
A1: Coût direct de votre panier de prestations
A3: Les prestations fonction ressource | C3: Unité d'œuvre | D3: Objectif | E3: Coûts directs hors transports | F3: Coûts complets
A4: Information Documentation | C4: Demande d'information | D4: ='1. Vos objectifs'!D4 -> 110 | E4: =D4*'7.Coûts par prestation'!B33 -> 1427.288217 | F4: =E4*100/70 -> 2038.983168
A5: Sensibilisation | C5: Séance | D5: ='1. Vos objectifs'!D5 -> 17 | E5: =D5*'7.Coûts par prestation'!C33 -> 5101.158591 | F5: =E5*100/70 -> 7287.369415
A6: Formation | B6: Cas 1 ESMS NON OF | C6: La demande de formation sous-traitée | D6: ='1. Vos objectifs'!D6 -> 3 | E6: =D6*'7.Coûts par prestation'!D33 -> 503.7608244 | F6: 719.6583205
A7: Formation | B7: Cas 2 ESMS OF | C7: Séance | D7: ='1. Vos objectifs'!D7 -> 1 | E7: =D7*'7.Coûts par prestation'!E33 -> 803.2330017 | F7: 1147.475717
A8: Appui aux pratiques | C8: Séance | D8: ='1. Vos objectifs'!D8 -> 30 | E8: =D8*'7.Coûts par prestation'!F33 -> 16305.28656 | F8: 23293.26651
A9: Appui-conseil | C9: Séance | D9: ='1. Vos objectifs'!D9 -> 18 | E9: =D9*'7.Coûts par prestation'!G33 -> 11075.76941 | F9: 15822.52773
A10: Observation-évaluation partagée | B10: Cas 1 Sous forme d'accueil temporaire | C10: Journée d'accueil temporaire | D10: ='1. Vos objectifs'!D10 -> 10 | E10: =D10*'7.Coûts par prestation'!H33 -> 1761.658633 | F10: 2516.65519
B11: Cas 2 Au sein de l'ESMS requérant | C11: Session | D11: ='1. Vos objectifs'!D11 -> 0 | E11: =D11*'7.Coûts par prestation'!I33 -> 0 | F11: 0
A12: Total | E12: =SUM(E4:E11) -> 36978.15524 | F12: =SUM(F4:F11) -> 52825.93605

Sheet 10.Valorisation en ETP
A1: ETP de personnel nécessités par votre panier de prestations
A3: Les prestations fonction ressource | C3: Unité d'œuvre | D3: Objectif | E3: ETP requis
E4: Educateur | F4: Infirmière | G4: Médecin spécialisé | H4: Psychologue | I4: Référent FR | J4: Administratif
A5: Information Documentation | C5: Demande d'information | D5: ='1. Vos objectifs'!D4 -> 110 | E5: =$D5*'8.ETP par prestation'!B5 -> 0 | F5: =$D5*'8.ETP par prestation'!B$6 -> 0 | G5: =$D5*'8.ETP par prestation'!B$7 -> 0 | H5: =$D5*'8.ETP par prestation'!B$8 -> 0 | I5: =$D5*'8.ETP par prestation'!B$9 -> 0.01711263223 | J5: =$D5*'8.ETP par prestation'!B$10 -> 0.01711263223
A6: Sensibilisation | C6: Séance | D6: ='1. Vos objectifs'!D5 -> 17 | E6: =$D6*'8.ETP par prestation'!C5 -> 0.0229205559 | F6: =$D6*'8.ETP par prestation'!C$6 -> 0.0229205559 | G6: =$D6*'8.ETP par prestation'!C$7 -> 0 | H6: =$D6*'8.ETP par prestation'!C$8 -> 0 | I6: =$D6*'8.ETP par prestation'!C$9 -> 0.04760423149 | J6: =$D6*'8.ETP par prestation'!C$10 -> 0.02203899606
A7: Formation | B7: Cas 1 ESMS NON OF | C7: La demande de formation sous-traitée | D7: ='1. Vos objectifs'!D6 -> 3 | E7: =$D7*'8.ETP par prestation'!D5 -> 0 | F7: =$D7*'8.ETP par prestation'!D$6 -> 0 | G7: =$D7*'8.ETP par prestation'!D$7 -> 0 | H7: =$D7*'8.ETP par prestation'!D$8 -> 0 | I7: =$D7*'8.ETP par prestation'!D$9 -> 0.007467330429 | J7: =$D7*'8.ETP par prestation'!D$10 -> 0.003578095831
B8: Cas 2 ESMS OF | C8: Séance | D8: ='1. Vos objectifs'!D7 -> 1 | E8: =$D8*'8.ETP par prestation'!E5 -> 0.005444928438 | F8: =$D8*'8.ETP par prestation'!E$6 -> 0.005444928438 | G8: =$D8*'8.ETP par prestation'!E$7 -> 0.0004667081518 | H8: =$D8*'8.ETP par prestation'!E$8 -> 0.0004667081518 | I8: =$D8*'8.ETP par prestation'!E$9 -> 0.004252229828 | J8: =$D8*'8.ETP par prestation'!E$10 -> 0.001400124456
A9: Appui aux pratiques | C9: Séance | D9: ='1. Vos objectifs'!D8 -> 30 | E9: =$D9*'8.ETP par prestation'!F5 -> 0.07000622278 | F9: =$D9*'8.ETP par prestation'!F$6 -> 0.07000622278 | G9: =$D9*'8.ETP par prestation'!F$7 -> 0.01400124456 | H9: =$D9*'8.ETP par prestation'!F$8 -> 0.01400124456 | I9: =$D9*'8.ETP par prestation'!F$9 -> 0.1275668948 | J9: =$D9*'8.ETP par prestation'!F$10 -> 0.04200373367
A10: Appui-conseil | C10: Séance | D10: ='1. Vos objectifs'!D9 -> 18 | E10: =$D10*'8.ETP par prestation'!G5 -> 0.0504044804 | F10: =$D10*'8.ETP par prestation'!G$6 -> 0.0504044804 | G10: =$D10*'8.ETP par prestation'!G$7 -> 0.008400746733 | H10: =$D10*'8.ETP par prestation'!G$8 -> 0.008400746733 | I10: =$D10*'8.ETP par prestation'!G$9 -> 0.08774113255 | J10: =$D10*'8.ETP par prestation'!G$10 -> 0.0252022402
A11: Observation-évaluation partagée | B11: Cas 1 Sous forme d'accueil temporaire | C11: Journée d'accueil temporaire | D11: ='1. Vos objectifs'!D10 -> 10 | E11: =$D11*'8.ETP par prestation'!H5 -> 0.004667081518 | F11: =$D11*'8.ETP par prestation'!H$6 -> 0.004667081518 | G11: =$D11*'8.ETP par prestation'!H$7 -> 0 | H11: =$D11*'8.ETP par prestation'!H$8 -> 0 | I11: =$D11*'8.ETP par prestation'!H$9 -> 0.02177971375 | J11: =$D11*'8.ETP par prestation'!H$10 -> 0.007259904584
B12: Cas 2 Au sein de l'ESMS requérant | C12: Session | D12: ='1. Vos objectifs'!D11 -> 0 | E12: =$D12*'8.ETP par prestation'!I5 -> 0 | F12: =$D12*'8.ETP par prestation'!I$6 -> 0 | G12: =$D12*'8.ETP par prestation'!I$7 -> 0 | H12: =$D12*'8.ETP par prestation'!I$8 -> 0 | I12: =$D12*'8.ETP par prestation'!I$9 -> 0 | J12: =$D12*'8.ETP par prestation'!I$10 -> 0
A13: Total | E13: =SUM(E5:E12) -> 0.153443269 | F13: =SUM(F5:F12) -> 0.153443269 | G13: 0.02286869944 | H13: 0.02286869944 | I13: 0.3135241651 | J13: 0.118595727

Sheet 11. Synthèse des coûts
A1: Snthèse des coûts directs et complets par unité de prestation fonction ressource
C3: Unité d'œuvre | D3: Coût DIRECT en euros hors transport | E3: Commentaires
A4: Information Documentation | C4: Demande d'information | D4: =ROUND('7.Coûts par prestation'!B33,0) -> 13
A5: Sensibilisation | C5: Séance | D5: =ROUND('7.Coûts par prestation'!C33,0) -> 300 | E5: En présentiel ou en distantiel
A6: Formation | B6: Cas 1 ESMS NON OF | C6: La demande de formation sous-traitée | D6: =ROUND('7.Coûts par prestation'!D33,-1) -> 170 | E6: Depuis la réception de la demande jusqu'au suivi de l'action réalisée par l'OF
B7: Cas 2 ESMS OF | C7: Séance | D7: =ROUND('7.Coûts par prestation'!E33,-1) -> 800 | E7: Habituellement financé par les fonds de formation professionnelle
A8: Appui aux pratiques | C8: Séance | D8: =ROUND('7.Coûts par prestation'!F33,-1) -> 540
A9: Appui-conseil | C9: Séance | D9: =ROUND('7.Coûts par prestation'!G33,-1) -> 620
A10: Observation-évaluation partagée | B10: Cas 1 Sous forme d'accueil temporaire | C10: Journée d'accueil temporaire | D10: =ROUND('7.Coûts par prestation'!H33,-1) -> 180 | E10: A ajouter au prix de journée de l'établissement
B11: Cas 2 Au sein de l'ESMS requérant | C11: Session | D11: =ROUND('7.Coûts par prestation'!I33,-1) -> 830
C15: Unité d'œuvre | D15: Coût COMPLET en euros hors transport | E15: Commentaires
A16: Information Documentation | C16: Demande d'information | D16: =D4*100/70 -> 18.57142857
A17: Sensibilisation | C17: Séance | D17: =D5*100/70 -> 428.5714286 | E17: En présentiel ou en distantiel
A18: Formation | B18: Cas 1 ESMS NON OF | C18: La demande de formation sous-traitée | D18: 242.8571429 | E18: Depuis la réception de la demande jusqu'au suivi de l'action réalisée par l'OF
B19: Cas 2 ESMS OF | C19: Séance | D19: 1142.857143 | E19: Habituellement financé par les fonds de formation professionnelle
A20: Appui aux pratiques | C20: Séance | D20: 771.4285714
A21: Appui-conseil | C21: Séance | D21: 885.7142857
A22: Observation-évaluation partagée | B22: Cas 1 Sous forme d'accueil temporaire | C22: Journée d'accueil temporaire | D22: 257.1428571 | E22: A ajouter au prix de journée de l'établissement
B23: Cas 2 Au sein de l'ESMS requérant | C23: Session | D23: =D11*100/70 -> 1185.714286
